Workbook

Sheet стр.1_3
CO1: Приложение 2
CO2: к приказу Федеральной службы по тарифам
CO3: от 24 октября 2014 г. № 1831-э
A5: Форма раскрытия информации о структуре и объемах затрат
A6: на оказание услуг по передаче электрической энергии сетевыми
A7: организациями, регулирование деятельности которых осуществляется
A8: методом долгосрочной индексации необходимой валовой выручки
C10: Наименование организации: | AG10: ООО "Нижегородская электросетевая компания"
C11: ИНН: | J11: 5256133344
C12: КПП: | J12: 525601001
C13: Долгосрочный период регулирования: | AQ13: 2019 | AY13: - | BA13: 2023 | BI13: гг.
A15: № п/п | J15: Показатель | BI15: Ед. изм. | BT15: 2023 | CN15: Примечание ***
BT16: план * | CD16: факт **
A17: I | K17: Структура затрат | BI17: х | BT17: х | CD17: х | CN17: х
A18: 1 | K18: Необходимая валовая выручка на содержание | BI18: тыс. руб. | BT18: ='[1]Расчёт расходов'!$G$117 -> 148,514.20 | CD18: ='[1]Расчёт расходов'!$I$117 -> 176,481.20 | CN18: РСТ НО в плане базового года ДПР (2019 г.) учтены затраты на ТО и ППР сетей не в полном объеме от заявленого | DI18: =CD18-BT18 -> 27,967.00
A19: 1.1 | K19: Подконтрольные расходы, всего | BI19: тыс. руб. | BT19: ='[1]Расчёт расходов'!$G$50 -> 109,679.97 | CD19: ='[6]Расчёт расходов'!$I$50 -> 128,560.01 | CN19: РСТ НО в плане базового года ДПР (2019 г.) учтены затраты на ТО и ППР сетей не в полном объеме от заявленого | DI19: =CD19-BT19 -> 18,880.05
A20: 1.1.1 | K20: Материальные расходы, всего | BI20: тыс. руб. | CD20: ='[6]Расчёт расходов'!$I$25 -> 18,297.96 | CN20: в плане базового года ДПР (2019 г.) затраты на ФОТ, материалы были учтены в статье "Работы и услуги производственного характера". В 2020 г. произошел перевод персонала ЭСЦ ООО "Заводские сети" в штат ООО "НЭСК", произошло изменение структуры затрат | DI20: 18,297.96
A21: 1.1.1.1 | K21: в том числе на сырье, материалы, запасные части, инструмент, топливо | BI21: тыс. руб. | CD21: ='[1]Расчёт расходов'!$I$26 -> 16,666.80 | DI21: 16,666.80
A22: 1.1.1.2 | K22: на ремонт | BI22: тыс. руб. | CD22: =CD21-'[5]!исходн'!$Q$106-'[5]!исходн'!$Q$108-'[5]!исходн'!$Q$109 -> 13,220.35 | CN22: частичный переход с выполнения кап. ремонтов подрядным способом на кап. ремонты хоз. способом (силами ЭСЦ ООО "НЭСК") | DI22: 13,220.35
A23: 1.1.1.3 | K23: в том числе на работы и услуги производственного характера (в том числе услуги сторонних организаций по содержанию сетей и распределительных устройств) | BI23: тыс. руб. | CD23: ='[1]Расчёт расходов'!$I$27 -> 1,631.16 | CN23: в плане базового года ДПР (2019 г.) затраты на ФОТ, материалы были учтены в статье "Работы и услуги производственного характера". В 2020 г. произошел перевод персонала ЭСЦ ООО "Заводские сети" в штат ООО "НЭСК", произошло изменение структуры затрат | DI23: 1,631.16
A24: 1.1.1.3.1 | K24: в том числе на ремонт | BI24: тыс. руб. | CD24: 0.00 | DI24: 0.00
A25: 1.1.2 | K25: Фонд оплаты труда | BI25: тыс. руб. | CD25: ='[1]Расчёт расходов'!$I$28 -> 86,170.41 | CN25: в плане базового года ДПР (2019 г.) затраты на ФОТ, материалы были учтены в статье "Работы и услуги производственного характера". В 2020 г. произошел перевод персонала ЭСЦ ООО "Заводские сети" в штат ООО "НЭСК", произошло изменение структуры затрат | DI25: 86,170.41
A26: 1.1.2.1 | K26: в том числе на ремонт | BI26: тыс. руб. | DI26: 0.00
A27: 1.1.3 | K27: Прочие подконтрольные расходы (с расшифровкой) | BI27: тыс. руб. | CD27: ='[1]Расчёт расходов'!$I$29 -> 23,181.69 | CN27: рост затрат по факту 2023 г. связан с заключением договора страхования имущества,уборки,дератизация и проч. | DI27: 23,181.69
A28: 1.1.3.1 | K28: в том числе прибыль на социальное развитие (включая социальные выплаты) | BI28: тыс. руб. | CD28: ='[1]Расчёт расходов'!$I$47 -> 725.28 | CN28: в плане базового года ДПР (2019 г.) затраты не были учтены РСТ в связи с отсутствием отраслевого тарифного соглашения | DI28: 725.28
A29: 1.1.3.2 | K29: в том числе транспортные услуги | BI29: тыс. руб. | CD29: ='[1]Расчёт расходов'!$I$36 -> 4,837.15 | DI29: 4,837.15
A30: 1.1.3.3 | K30: в том числе прочие расходы (с расшифровкой)**** | BI30: тыс. руб. | CD30: ='[1]Расчёт расходов'!$I$29-'[1]Расчёт расходов'!$I$36 -> 18,344.54 | CN30: Рост фактических затрат от базы 2019 г. РСТ НО в плане базового года ДПР (2019 г.) учтены затраты на ТО и ППР сетей не в полном объеме от заявленого | DI30: 18,344.54
J31: ='[1]Расчёт расходов'!$E$30 -> Ремонт основных фондов | BI31: тыс. руб. | CD31: ='[1]Расчёт расходов'!$I$30 -> 1,979.47
J32: =DE33 -> Услуги связи | BI32: тыс. руб. | CD32: ='[1]Расчёт расходов'!$I$32 -> 499.69 | DE32: Работы и услуги непроизводственного характера
J33: =DE34 -> Расходы на услуги вневедомственной охраны и коммунального хозяйства | BI33: тыс. руб. | CD33: ='[1]Расчёт расходов'!$I$33 -> 5,612.95 | DE33: Услуги связи
J34: =DE35 -> Расходы на юридические услуги и информационные услуги | BI34: тыс. руб. | CD34: ='[1]Расчёт расходов'!$I$34 -> 772.35 | DE34: Расходы на услуги вневедомственной охраны и коммунального хозяйства
J35: =DE36 -> Расходы на аудиторские и консультационные услуги | BI35: тыс. руб. | CD35: ='[1]Расчёт расходов'!$I$35 -> 0.00 | DE35: Расходы на юридические услуги и информационные услуги
BI36: тыс. руб. | DE36: Расходы на аудиторские и консультационные услуги
J37: Прочие услуги сторонних организаций | BI37: тыс. руб. | CD37: ='[1]Расчёт расходов'!$I$37 -> 2,408.56 | DE37: Транспортные услуги
J38: Расходы на командировки и представительские | BI38: тыс. руб. | CD38: ='[1]Расчёт расходов'!$I$38 -> 148.68 | DE38: Прочие услуги сторонних организаций
J39: Расходы на подготовку кадров | BI39: тыс. руб. | CD39: ='[1]Расчёт расходов'!$I$39 -> 576.21 | DE39: Расходы на командировки и представительские
J40: Расходы на обеспечение нормальных услуовий труда и мер по технике безопасности | BI40: тыс. руб. | CD40: ='[1]Расчёт расходов'!$I$40 -> 3,357.90 | DE40: Расходы на подготовку кадров
J41: Расходы на страхование | BI41: тыс. руб. | CD41: ='[1]Расчёт расходов'!$I$41 -> 2,988.73 | DE41: Расходы на обеспечение нормальных услуовий труда и мер по технике безопасности
A42: 1.1.4 | K42: Расходы на обслуживание операционных заемных средств в составе подконтрольных расходов | BI42: тыс. руб. | BT42: ='[4]НЭСК сглаживание'!$F$23+'[4]НЭСК сглаживание'!$F$39+'[4]НЭСК сглаживание'!$F$50+'[4]НЭСК сглаживание'!$F$61 -> 11,531.78 | CD42: ='[1]Расчёт расходов'!$I$71 -> 18,162.92 | CN42: по факту учтены проценты по заемным средствам по займам прошлых периодов в целях компенсации выпадающих расходов (в т.ч. прошлых ДПР) | DE42: Расходы на страхование | DI42: 6,631.15
A43: 1.1.5 | K43: Расходы из прибыли в составе подконтрольных расходов | BI43: тыс. руб. | DI43: 0.00
A44: 1.2 | K44: Неподконтрольные расходы, включенные в НВВ, всего | BI44: тыс. руб. | BT44: ='[1]Расчёт расходов'!$G$82 -> 54,346.59 | CD44: ='[6]Расчёт расходов'!$I$82 -> 257,472.00 | CN44: Отклонения по аренде и соц. отчислениям - см. ниже | DI44: 203,125.41
A45: 1.2.1 | K45: Оплата услуг ОАО "ФСК ЕЭС" | BI45: тыс. руб. | BT45: 0.00 | CD45: 0.00 | DI45: 0.00
A46: 1.2.2 | K46: Расходы на оплату технологического присоединения к сетям смежной сетевой организации | BI46: тыс. руб. | BT46: 0.00 | CD46: 0.00 | DI46: 0.00
A47: 1.2.3 | K47: Плата за аренду имущества | BI47: тыс. руб. | BT47: ='[1]Расчёт расходов'!$G$61 -> 7,015.82 | CD47: ='[6]Расчёт расходов'!$I$61 -> 20,922.77 | CN47: По факту 2023 г. стоимость аренды оплачена арендодателям по рыночной цене, а РСТ учтена по плану 2023 г.- в размере возмещения затрат на амортизацию и налоги | DI47: 13,906.95
A48: 1.2.4 | K48: отчисления на социальные нужды | BI48: тыс. руб. | BT48: ='[1]Расчёт расходов'!$G$70 -> 15,337.50 | CD48: ='[6]Расчёт расходов'!$I$70 -> 16,375.83 | CN48: Рассчитывается в % от фактического ФОТ за 2022 г. | DI48: 1,038.32
A49: 1.2.5 | K49: расходы на возврат и обслуживание долгосрочных заемных средств, направляемых на финансирование капитальных вложений | BI49: тыс. руб. | BT49: ='[4]расчет процентов'!$G$28/1000+'[4]расчет процентов'!$O$12/1000+'[4]расчет процентов'!$W$7/1000 -> 11,128.64 | CD49: =('[7] проценты'!$K$30+'[7] проценты'!$K$52+'[7] проценты'!$K$76)/1000 -> 10,643.06 | CN49: Ставка кредитования по факту ниже планового расчета | DI49: -485.58
A50: 1.2.6 | K50: амортизация | BI50: тыс. руб. | BT50: ='[1]Расчёт расходов'!$G$75 -> 17,561.04 | CD50: ='[6]Расчёт расходов'!$I$75 -> 29,694.54 | CN50: расчет регулятора по максимальным срокам полезного использования | DI50: 12,133.50
A51: 1.2.7 | K51: налог на величину капитальных вложений | BI51: тыс. руб. | BT51: ='[1]Расчёт расходов'!$G$73 -> 1,017.25 | CD51: =CD52 -> 6,813.78 | CN51: рост кап вложений в части тех. присоединений заявителей | DI51: 5,796.53
A52: 1.2.8 | K52: налог на прибыль | BI52: тыс. руб. | BT52: =BT51 -> 1,017.25 | CD52: ='[6]Расчёт расходов'!$I$73 -> 6,813.78 | DI52: 5,796.53
A53: 1.2.9 | K53: прочие налоги | BI53: тыс. руб. | BT53: 0.00 | CD53: ='[6]Расчёт расходов'!$I$65 -> 816.19 | CN53: земельный, налог на имущество, транспортный налоги на выкупленное в 2020-2022 г. имущество, изменение структуры затрат от базового года | DI53: 816.19
A54: 1.2.10 | K54: Расходы сетевой организации, связанные с осуществлением технологического присоединения к электрическим сетям, не включенные в плату за технологическое присоединение | BI54: тыс. руб. | BT54: 0.00 | CD54: 0.00 | DI54: 0.00
A55: 1.2.10.1 | K55: Справочно: "Количество льготных технологических присоединений" | BI55: ед. | BT55: 0.00 | CD55: 0.00 | DI55: 0.00
A56: 1.2.11 | K56: Средства, подлежащие дополнительному учету по результатам вступивших в законную силу решений суда, решений ФСТ России, принятых по итогам рассмотрения разногласий или досудебного урегулирования споров, решения ФСТ России об отмене решения регулирующего органа, принятого им с превышением полномочий (предписания) | BI56: тыс. руб. | BT56: 0.00 | CD56: 0.00 | DI56: 0.00
A57: 1.2.12 | K57: прочие неподконтрольные расходы (с расшифровкой) | BI57: тыс. руб. | BT57: ='[1]Расчёт расходов'!$G$72 -> 521.38 | CD57: ='[6]Расчёт расходов'!$I$55 -> 1,465.95 | CN57: рост расходов на комунальные услуги от уровня, утвержденного регулятором | DI57: 944.57
A58: 1.3 | K58: недополученный по независящим причинам доход (+)/избыток средств, полученный в предыдущем периоде регулирования (-) | BI58: тыс. руб. | BT58: ='[1]Расчёт расходов'!$G$87+'[1]Расчёт расходов'!$G$103 -> -16,656.09 | CD58: 0.00 | DI58: 16,656.09
A59: II | K59: Справочно: расходы на ремонт, всего (пункт 1.1.1.2 + пункт 1.1.2.1 + пункт 1.1.3.1) | BI59: тыс. руб. | BT59: =BT22+BT26+BT28 -> 0.00 | CD59: =CD22+CD24+CD26 -> 13,220.35 | CN59: с 01.09.2020 г. частичный переход с выполнения кап. ремонтов подрядным способом на кап. ремонты хоз. способом (силами ЭСЦ ООО "НЭСК") | DI59: 13,220.35
A60: III | K60: Необходимая валовая выручка на оплату технологического расхода (потерь) электроэнергии | BI60: тыс. руб. | BT60: ='[2]П1.25'!$H$19/'[2]П1.4'!$P$36 -> 129,692.77 | CD60: ='[5]свод для УО'!$Q$68 -> 98,330.30 | CN60: Экономия связана с факторами снижения объема потерь и снижения цены покупки потерь от плана 2023 г. | DI60: -31,362.47
A61: 1.1 | K61: Справочно: Объем технологических потерь | BI61: МВт∙ч | BT61: ='[1]П1.4'!$F$25*1000 -> 34,738.35 | CD61: ='[6]П1.4'!$K$25*1000 -> 28,632.50 | CN61: снижение размера потерь связано с отклонением структуры баланса эл. энергии в разбивке по уровням напряжения по факту 2023 г. от плана. | DI61: -6,105.85
A62: 1.2 | K62: Справочно: Цена покупки электрической энергии сетевой организацией в целях компенсации технологического расхода электрической энергии | BI62: тыс. руб./МВт*ч | BT62: =BT60/BT61 -> 3.73 | CD62: =CD60/CD61 -> 3.43 | DI62: -0.30
A63: IV | K63: Натуральные (количественные) показатели, используемые при определении структуры и объемов затрат на оказание услуг по передаче электрической энергии сетевыми организациями | BI63: х | BT63: х | CD63: х
A64: 1 | K64: общее количество точек подключения на конец года | BI64: шт. | BT64: 539.00 | CD64: ='[6]Прилож1 МУ 421-э'!$CD$35:$CL$35 -> 583.00 | DI64: 44.00
A65: 2 | K65: Трансформаторная мощность подстанций, всего | BI65: МВа | BT65: 1,249.43 | CD65: ='[6]Прилож1 МУ 421-э'!$CD$47:$CL$47 -> 1,441.23 | DI65: 191.80
A66: 2.1 | K66: в том числе трансформаторная мощность подстанций на уровне напряжения ВН | BI66: МВа | BT66: 560.00 | CD66: ='[6]Прилож1 МУ 421-э'!$CD$48:$CL$48 -> 560.00 | DI66: 0.00
A67: 2.2 | K67: в том числе трансформаторная мощность подстанций на уровне напряжения СН2 | BI67: МВа | BT67: =BT65-BT66 -> 689.43 | CD67: ='[6]Прилож1 МУ 421-э'!$CD$50:$CL$50 -> 881.23 | DI67: 191.80
A68: 3 | K68: Количество условных единиц по линиям электропередач, всего | BI68: у.е. | BT68: ='[1]Р.2.1'!$L$53 -> 2,403.53 | CD68: ='[6]Р.2.1'!$O$53 -> 2,406.01 | DI68: 2.49
A69: 3.1 | K69: в том числе количество условных единиц по линиям электропередач на уровне напряжения ВН | BI69: у.е. | BT69: ='[1]Р.2.1'!$L$54 -> 0.05 | CD69: ='[6]Р.2.1'!$O$54 -> 0.05 | DI69: 0.00
A70: 3.2 | K70: в том числе количество условных единиц по линиям электропередач на уровне напряжения СН2 | BI70: у.е. | BT70: ='[1]Р.2.1'!$L$56 -> 2,400.93 | CD70: ='[6]Р.2.1'!$O$56 -> 2,403.42 | DI70: 2.49
D71: 3.3. | K71: в том числе количество условных единиц по линиям электропередач на уровне напряжения НН | BI71: у.е. | BV71: 2.55 | CD71: 2.55 | DI71: =#REF!-BT71 -> 
A72: 4 | K72: Количество условных единиц по подстанциям, всего | BI72: у.е. | BT72: ='[1]Р.2.2'!$L$67 -> 4,546.70 | CD72: ='[6]Р.2.2'!$O$67 -> 4,641.90 | DI72: 95.20
A73: 4.1 | K73: в том числе Количество условных единиц по подстанциям на уровне напряжения ВН | BI73: у.е. | BT73: ='[1]Р.2.2'!$L$68 -> 455.60 | CD73: ='[6]Р.2.2'!$O$68 -> 469.60 | DI73: 14.00
A74: 4.2 | K74: в том числе Количество условных единиц по подстанциям на уровне напряжения СН2 | BI74: у.е. | BT74: ='[1]Р.2.2'!$L$70 -> 4,091.10 | CD74: ='[6]Р.2.2'!$O$70 -> 4,172.30 | DI74: 81.20
A75: 5 | K75: Длина линий электропередач, всего | BI75: км | BT75: ='[1]Р.2.1'!$K$53 -> 686.99 | CD75: ='[6]Р.2.1'!$N$53 -> 687.70 | DI75: 0.71
A76: 5.1 | K76: в том числе длина линий электропередач на уровне напряжения ВН | BI76: км | BT76: ='[1]Р.2.1'!$K$54 -> 0.03 | CD76: ='[6]Р.2.1'!$N$54 -> 0.03 | DI76: 0.00
A77: 5.2. | K77: в том числе длина линий электропередач на уровне напряжения СН2 | BI77: км | BT77: ='[1]Р.2.1'!$K$56 -> 685.98 | CD77: ='[6]Р.2.1'!$N$56 -> 686.69 | DI77: 0.71
F78: 5.3 | K78: в том числе длина линий электропередач на уровне напряжения НН | BI78: км | BW78: 0.98 | CD78: 0.98 | DI78: =#REF!-BT78 -> 
A79: 6 | K79: Доля кабельных линий электропередач | BI79: % | BT79: =BT77/BT75 -> 99.85% | CD79: =CD77/CD75 -> 99.85% | DI79: 0.00
A80: 7 | K80: Ввод в эксплуатацию новых объектов электросетевого комплекса на конец года | BI80: тыс. руб. | BT80: ='[4]НЭСК сглаживание'!$F$5/1.2 -> 68,641.67 | CD80: =[3]TDSheet!$Q$102/1000 -> 119,456.54 | CN80: Ввод ОС в рамках выполнения тех. присоединений | DI80: 50,814.87
A81: 7.1 | K81: в том числе за счет платы за технологическое присоединение | BI81: тыс. руб. | BT81: 0.00 | CD81: =([3]TDSheet!$Q$6+[3]TDSheet!$Q$41+[3]TDSheet!$Q$42+[3]TDSheet!$Q$44+[3]TDSheet!$Q$45+[3]TDSheet!$Q$47+[3]TDSheet!$Q$71+[3]TDSheet!$Q$75+[3]TDSheet!$Q$81)/1000 -> 51,114.53 | DI81: 51,114.53
A82: 8 | K82: норматив технологического расхода (потерь) электрической энергии, установленный Минэнерго России ***** | BI82: % | BT82: 5.52 | CD82: ='[6]П1.4'!$K$26 -> 4.18 | CN82: снижение размера потерь связано с отклонением структуры баланса эл. энергии в разбивке по уровням напряжения по факту 2023 г. от плана. | DI82: -1.34
A86: Генеральный директор ООО "НЭСК" | CQ86: Д.А.Недоростков
G87: Примечание:
A88: _____*_В случае определения плановых значений показателей органами исполнительной власти в области государственного регулирования тарифов при установлении тарифов на услуги по передаче электрической энергии в столбце <план> указываются соответствующие значения. Плановые значения составляющих подконтрольных расходов раскрываются в отношении расходов, учтенных регулирующим органом на первый год долгосрочного периода регулирования.
A89: _____**_Информация о фактических затратах на оказание регулируемых услуг заполняется на основании данных раздельного учета расходов по регулируемым видам деятельности.
A90: _____***_При наличии отклонений фактических значений показателей от плановых значений более чем на 15 процентов в столбце <Примечание> указываются причины их возникновения.
A91: _____****_В соответствии с пунктом 28 Основ ценообразования в области регулируемых цен (тарифов) в электроэнергетике, утвержденных постановлением Правительства Российской Федерации от 29.12.2011 № 1178.
A92: _____*****_В соответствии с пунктом 4.2.14.8 Положения о Министерстве энергетики Российской Федерации, утвержденного постановлением Правительства Российской Федерации от 28.05.2008 № 400.
